bitfinex/quotes_SOLUSD_20250903
["timestamp","ask_amount","ask_price","bid_price","bid_amount"]
[1756868746918,0.7,211.74,211.7,3.45501153]
[1756868747225,0.7,211.73,211.69,3.45501153]
[1756868747402,0.7,211.73,211.68,87.23413924]
[1756868747603,0.7,211.73,211.69,0.69]
[1756868747917,0.7,211.72,211.68,79.7]
[1756868748224,0.7,211.71,211.68,79.7]
[1756868750124,7.81718862,211.74,211.66,87.2344563]
[1756868750329,0.7,211.73,211.67,6.26343088]
[1756868750627,7.81718862,211.74,211.67,8.17770827]
[1756868750830,0.7,211.72,211.67,10.9877611]
[1756868751130,0.7,211.72,211.67,11.6777611]
[1756868751310,0.7,211.72,211.68,0.69]
[1756868751510,7.81718862,211.74,211.68,0.69]
[1756868751712,7.81718862,211.74,211.68,4.14337805]
[1756868751713,8.51718862,211.74,211.68,4.14337805]
[1756868751913,0.7,211.73,211.68,3.45337805]
[1756868752212,0.7,211.72,211.68,3.45337805]
[1756868752414,0.7,211.72,211.67,10.9877611]
[1756868752626,0.7,211.71,211.68,3.45337805]
[1756868752831,0.7,211.73,211.67,10.9877611]
[1756868753228,0.7,211.73,211.68,3.45337805]
[1756868753421,0.7,211.73,211.68,8.86748217]
[1756868753733,0.7,211.72,211.68,4.14337805]
[1756868754032,0.7,211.72,211.68,3.45337805]
[1756868754231,0.7,211.72,211.69,3.45337805]
[1756868754414,5.76691799,211.75,211.69,4.14337805]
[1756868754806,8.23436008,211.74,211.69,4.14337805]
[1756868755027,0.7,211.73,211.69,4.14337805]
[1756868755233,0.7,211.73,211.69,0.69]
[1756868756004,13.83449976,211.74,211.68,79.7]
[1756868756208,5.08762477,211.72,211.69,3.45758334]
[1756868756436,0.7,211.71,211.68,79.7]
[1756868757134,0.7,211.7,211.68,79.7]
[1756868757332,5.08762477,211.69,211.65,0.03]
[1756868757506,4.38762477,211.68,211.66,3.46197445]
[1756868757706,0.7,211.67,211.65,0.03]
[1756868758651,0.7,211.66,211.65,0.03]
[1756868759508,5.08762477,211.66,211.65,0.03]
[1756868759843,10.23866773,211.66,211.65,0.03]
[1756868760433,68.37410948,211.66,211.65,0.03]
[1756868760744,73.09866773,211.66,211.65,0.03]
[1756868760946,86.69426174,211.66,211.65,0.03]
[1756868762741,36.23866773,211.66,211.65,0.03]
[1756868762933,73.09866773,211.66,211.65,0.03]
[1756868766040,4.38762477,211.68,211.65,0.72]
[1756868766214,4.38762477,211.71,211.66,0.69]
[1756868766416,4.38762477,211.74,211.67,5.07762477]
[1756868766640,4.41762477,211.71,211.68,0.69]
[1756868766937,41.24762477,211.72,211.65,4.41762477]
[1756868767137,36.86,211.72,211.66,0.69]
[1756868767439,36.86,211.72,211.66,5.07762477]
[1756868767641,36.86,211.72,211.67,0.69]
[1756868768020,37.56,211.72,211.67,0.69]
[1756868768928,37.56,211.72,211.67,5.41432096]
[1756868769432,36.86,211.71,211.67,5.41432096]
[1756868770224,6.11432096,211.72,211.67,4.72432096]
[1756868770429,36.86,211.71,211.68,0.69]
[1756868772038,4.81410948,211.69,211.65,0.03]
[1756868772239,4.67194791,211.66,211.65,0.03]
[1756868772419,41.67410948,211.66,211.65,0.03]
[1756868772617,42.39410948,211.66,211.65,0.03]
[1756868772819,44.28809371,211.66,211.65,0.03]
[1756868774251,49.01265196,211.66,211.65,0.03]
[1756868775252,44.28809371,211.66,211.65,0.03]
[1756868775463,44.62502719,211.66,211.65,0.03]
[1756868775948,49.01265196,211.66,211.65,0.03]
[1756868778528,44.62502719,211.66,211.65,0.03]
[1756868778725,7.42809371,211.66,211.65,0.03]
[1756868779021,44.28809371,211.66,211.65,0.03]
[1756868779438,49.01265196,211.66,211.65,0.03]
[1756868780451,62.60824597,211.66,211.65,0.03]
[1756868782534,43.28377057,211.66,211.65,0.03]
[1756868782848,43.42593214,211.66,211.65,0.03]
[1756868783051,43.141609,211.66,211.65,0.03]
[1756868783438,1.89398423,211.66,211.65,0.68]
[1756868783634,1.89398423,211.66,211.65,5.06762477]
[1756868784053,36.86,211.69,211.65,5.06762477]
[1756868784247,41.92762477,211.69,211.66,0.65]
[1756868784445,5.06762477,211.69,211.67,0.65]
[1756868784748,9.11042199,211.74,211.67,9.76174472]
[1756868784929,4.38762477,211.72,211.68,5.03762477]
[1756868785133,36.86,211.73,211.69,0.65]
[1756868785333,41.89762477,211.73,211.69,0.65]
[1756868785552,41.89762477,211.73,211.7,0.65]
[1756868785733,41.89762477,211.73,211.68,4.38762477]
[1756868785937,41.89762477,211.73,211.71,0.65]
[1756868786333,5.03762477,211.73,211.72,0.65]
[1756868786546,41.89762477,211.73,211.72,0.65]
[1756868787627,41.89762477,211.73,211.69,0.65]
[1756868787850,36.86,211.73,211.7,0.65]
[1756868788652,36.86,211.73,211.71,0.65]
[1756868788854,36.86,211.73,211.72,0.65]
[1756868791762,0.06,211.75,211.72,9.76074564]
[1756868791965,0.06,211.75,211.73,5.03762477]
[1756868792263,0.06,211.75,211.73,0.65]
[1756868792449,0.06,211.75,211.74,0.65]
[1756868794053,0.06,211.75,211.74,9.76039798]
[1756868794256,0.2,211.76,211.74,23.35599199]
[1756868794456,0.2,211.76,211.75,18.63321878]
[1756868795937,0.2,211.76,211.75,23.35576895]
[1756868799150,0.06,211.78,211.75,23.35576895]
[1756868799461,0.06,211.78,211.77,9.10972893]
[1756868799868,0.06,211.78,211.77,9.75972893]
[1756868803541,0.06,211.78,211.77,89.45972893]
[1756868805069,0.06,211.78,211.77,126.27972893]
[1756868807773,0.06,211.78,211.77,125.62972893]
[1756868807981,0.06,211.78,211.77,88.80972893]
[1756868808177,0.75,211.78,211.77,79.7]
[1756868808361,0.06,211.78,211.77,84.42210416]
[1756868808879,0.06,211.78,211.77,88.80972893]
[1756868810070,0.06,211.78,211.77,89.46972893]
[1756868810377,0.06,211.78,211.77,88.80972893]
[1756868810578,0.06,211.78,211.77,89.46972893]
[1756868810767,0.06,211.78,211.77,126.28972893]
[1756868812762,0.06,211.78,211.77,125.62972893]
[1756868813172,0.06,211.78,211.77,126.28972893]
[1756868813367,0.06,211.78,211.77,125.62972893]
[1756868813968,0.06,211.78,211.77,126.28972893]
[1756868814170,0.06,211.78,211.77,140.31180765]
[1756868814372,1e-08,211.83,211.8,13.87991715]
[1756868814574,1e-08,211.83,211.82,4.52978634]
[1756868815085,1e-08,211.83,211.82,31.18978634]
[1756868815782,1e-08,211.83,211.82,23.790693]
[1756868817399,0.2,211.88,211.87,39.59559401]
[1756868817598,0.2,211.88,211.87,76.39559401]
[1756868817767,0.2,211.88,211.87,81.7754694]
[1756868819881,0.2,211.88,211.87,84.57682231]
[1756868820397,0.2,211.88,211.87,47.77682231]
[1756868820577,0.2,211.88,211.87,84.57682231]
[1756868821082,0.2,211.88,211.87,124.6754694]
[1756868821282,0.2,211.88,211.87,126.81682231]
[1756868821487,0.2,211.88,211.87,150.6812283]
[1756868821670,0.2,211.88,211.87,113.2212283]
[1756868821999,0.2,211.88,211.87,150.0212283]
[1756868822882,0.2,211.88,211.87,113.2212283]
[1756868823077,0.2,211.88,211.87,124.0212283]
[1756868823893,0.2,211.88,211.87,121.21987539]
[1756868824196,0.2,211.88,211.87,79.7]
[1756868824197,0.89,211.88,211.87,79.7]
[1756868824370,0.89,211.88,211.86,39.60135291]
[1756868824571,0.69,211.87,211.86,39.60135291]
[1756868824782,0.69,211.87,211.86,44.32135055]
[1756868824980,0.69,211.87,211.86,4.71999764]
[1756868825181,0.69,211.87,211.85,41.52031922]
[1756868825403,0.69,211.86,211.85,41.52031922]
[1756868825904,0.69,211.86,211.85,44.32167213]
[1756868827487,0.69,211.86,211.85,41.52032098]
[1756868827800,0.69,211.86,211.85,79.7]
[1756868827997,0.69,211.86,211.84,79.7]
[1756868828201,0.69,211.85,211.84,79.7]
[1756868829703,0.69,211.85,211.78,4.72188119]
[1756868829907,0.69,211.84,211.79,36.8]
[1756868830084,0.69,211.83,211.79,36.8]
[1756868830279,0.69,211.82,211.79,36.8]
[1756868830589,0.69,211.81,211.79,79.7]
[1756868830795,0.69,211.8,211.79,79.7]
[1756868830996,3.49135291,211.8,211.76,0.03]
[1756868831183,2.80135291,211.78,211.76,0.03]
[1756868831508,5.41145776,211.8,211.76,0.03]
[1756868831694,0.71,211.77,211.76,0.03]
[1756868832277,3.79567605,211.77,211.76,0.03]
[1756868833004,3.51135291,211.77,211.76,0.03]
[1756868833510,0.71,211.81,211.76,0.03]
[1756868833707,0.71,211.8,211.76,0.03]
[1756868833914,0.71,211.79,211.76,0.03]
[1756868834523,0.71,211.78,211.76,0.03]
[1756868835007,2.80135291,211.8,211.76,0.03]
[1756868835393,0.71,211.77,211.76,0.03]
[1756868836196,3.51135291,211.77,211.76,0.03]
[1756868837310,0.71,211.77,211.76,0.03]
[1756868837510,3.51135291,211.77,211.76,0.03]
[1756868837822,0.71,211.77,211.76,0.03]
[1756868837989,3.51135291,211.8,211.76,0.03]
[1756868838189,0.71,211.79,211.76,0.03]
[1756868838413,0.71,211.8,211.76,0.03]
[1756868838917,2.80135291,211.81,211.76,0.03]
[1756868838918,0.71,211.79,211.76,0.03]
[1756868839389,0.71,211.79,211.77,3.43635751]
[1756868840290,0.71,211.79,211.76,0.03]
[1756868840685,2.80135291,211.79,211.76,0.03]
[1756868840916,3.51135291,211.78,211.76,0.03]
[1756868841315,3.51135291,211.78,211.76,3.46611701]
[1756868841600,3.51135291,211.78,211.76,0.03]
[1756868843013,0.71,211.77,211.76,0.03]
[1756868844810,3.51135291,211.77,211.76,0.03]
[1756868845215,0.71,211.77,211.76,0.03]
[1756868846005,3.51135291,211.77,211.76,0.03]
[1756868850816,8.23345707,211.77,211.76,0.03]
[1756868852022,8.65994178,211.77,211.76,0.03]
[1756868852630,27.13648471,211.77,211.76,0.03]
[1756868852807,29.93783762,211.77,211.76,0.03]
[1756868855631,29.79567605,211.77,211.76,0.03]
[1756868855931,2.80135291,211.78,211.76,0.03]
[1756868857245,3.51135291,211.78,211.76,0.03]
[1756868858808,2.80135291,211.77,211.76,0.03]
[1756868859507,36.82,211.81,211.76,0.7]
[1756868859726,39.62135291,211.81,211.77,0.67]
[1756868860108,39.62135291,211.81,211.76,0.03]
[1756868860109,3.51135291,211.8,211.76,0.03]
[1756868860437,39.62135291,211.82,211.77,0.67]
[1756868860605,39.62135291,211.82,211.78,0.67]
[1756868860811,31.46293417,211.84,211.8,2.80135291]
[1756868860812,0.28432314,211.83,211.8,2.80135291]
[1756868861147,41.57293417,211.84,211.81,0.67]
[1756868861441,2.80135291,211.85,211.81,0.67]
[1756868861616,3.51135291,211.83,211.77,8.18345707]
[1756868862226,3.51135291,211.83,211.77,5.38210416]
[1756868862437,36.82,211.85,211.78,0.66]
[1756868862438,2.80135291,211.84,211.78,0.66]
[1756868862729,2.80135291,211.84,211.78,3.46135291]
[1756868863134,2.80135291,211.84,211.78,5.3817092]
[1756868863331,39.62135291,211.84,211.79,0.66]
[1756868863533,39.62135291,211.84,211.8,0.66]
[1756868863735,39.62135291,211.84,211.78,7.52306211]
[1756868864043,39.62135291,211.84,211.8,0.66]
[1756868864217,40.33135291,211.84,211.8,0.66]
[1756868864937,3.51135291,211.84,211.78,4.7217092]
[1756868865139,0.06,211.92,211.86,13.87991715]
[1756868865337,0.06,211.92,211.9,28.80135291]
[1756868865651,0.06,211.92,211.91,19.82445507]
[1756868865811,0.06,211.92,211.91,22.3750376]
[1756868866015,0.06,211.93,211.91,22.3750376]
[1756868866239,0.06,211.93,211.92,6.88886106]
[1756868867217,0.06,211.93,211.92,11.60762285]
[1756868867541,0.06,211.93,211.92,15.61347406]
[1756868868140,1e-08,211.93,211.92,16.08535023]
[1756868868339,1e-08,211.93,211.92,15.61347406]
[1756868870041,1e-08,211.93,211.92,52.91347406]
[1756868871441,1e-08,211.93,211.92,132.61347406]
[1756868871740,1e-08,211.93,211.92,146.20906807]
[1756868872443,1e-08,211.97,211.95,26.0]
[1756868872624,1e-08,211.97,211.96,10.23471227]
[1756868872824,1e-08,211.97,211.96,10.89471227]
[1756868873932,1e-08,211.97,211.96,15.61258356]
[1756868874131,1e-08,211.97,211.96,14.95258356]
[1756868875231,1e-08,211.97,211.96,15.61258356]
[1756868875434,1e-08,212.0,211.99,26.0]
[1756868875649,1e-08,212.0,211.99,73.54851254]
[1756868877151,1e-08,212.0,211.99,36.28851254]
[1756868877351,1e-08,212.0,211.99,73.58851254]
[1756868877538,1e-08,212.0,211.99,81.42627999]
[1756868877930,1e-08,212.0,211.99,44.12627999]
[1756868878132,1e-08,212.05,212.0,13.59559401]
[1756868878347,1e-08,212.05,212.04,9.92776793]
[1756868878536,1e-08,212.05,212.04,64.40467036]
[1756868878740,1e-08,212.05,212.04,65.06467036]
[1756868879480,1e-08,212.05,212.04,56.18516765]
[1756868879751,1e-08,212.05,212.04,45.59739972]
[1756868879950,1e-08,212.05,212.04,55.52516765]
[1756868880135,1e-08,212.05,212.04,56.18516765]
[1756868880337,1e-08,212.05,212.04,69.78076166]
[1756868880653,1e-08,212.05,212.04,55.52516765]
[1756868881644,1e-08,212.05,212.04,8.19739972]
[1756868881850,1e-08,212.05,212.04,55.52516765]
[1756868882143,1e-08,212.05,212.04,56.18516765]
[1756868882535,1e-08,212.05,212.04,55.52516765]
[1756868882742,1e-08,212.05,212.04,8.19739972]
[1756868882944,1e-08,212.05,212.04,42.0960913]
[1756868883244,1e-08,212.05,212.04,45.57739972]
[1756868883455,0.71000001,212.05,212.04,45.57739972]
[1756868883664,0.71000001,212.05,212.04,8.19739972]
[1756868884169,0.71000001,212.05,212.04,8.17478828]
[1756868884362,0.71000001,212.05,212.03,3.45869698]
[1756868884666,0.71,212.04,212.03,4.71622985]
[1756868884854,1e-08,212.05,212.03,14.64399778]
[1756868885241,0.71000001,212.05,212.03,14.64399778]
[1756868885550,0.71,212.04,212.03,4.71622985]
[1756868886564,1e-08,212.05,212.03,4.71622985]
[1756868887065,0.71000001,212.05,212.03,4.71622985]
[1756868887768,1e-08,212.05,212.03,4.71622985]
[1756868887955,0.71,212.04,212.0,4.71698113]
[1756868888262,0.71,212.04,212.0,14.64474906]
[1756868888447,0.71,212.03,212.0,4.71698113]
[1756868888659,9.92776793,212.01,211.97,79.7]
[1756868888841,9.92776793,211.98,211.93,79.7]
[1756868889044,9.92776793,211.96,211.92,4.74854881]
[1756868889259,0.71,211.95,211.92,4.74854881]
[1756868889865,0.71,212.01,211.94,4.37825458]
[1756868890062,0.71,212.01,211.97,4.37825458]
[1756868890263,0.71000001,212.05,212.01,4.71675864]
[1756868890470,0.71,212.04,212.01,4.71675864]
[1756868890773,0.71,212.03,212.01,4.71675864]
[1756868891174,4.37825459,212.05,211.99,4.37825458]
[1756868891346,0.71,212.02,211.97,41.77825458]
[1756868891547,0.68,212.01,211.97,47.33067097]
[1756868892245,0.68,212.0,211.97,47.33067097]
[1756868892452,0.68,212.0,211.96,14.64854226]
[1756868892978,1e-08,212.05,211.93,14.64921011]
[1756868892979,0.68,211.99,211.93,14.64921011]
[1756868893271,0.68,211.99,211.94,9.93067097]
[1756868893465,0.68,211.99,211.93,14.64921011]
[1756868893853,10.61067097,211.99,211.93,14.64921011]
[1756868894055,0.68,211.99,211.93,4.71853914]
[1756868894254,10.61067097,211.99,211.93,4.71853914]
[1756868895056,10.61067097,211.99,211.93,14.64921011]
[1756868895457,10.61067097,211.99,211.93,4.71853914]
[1756868896580,0.68,211.99,211.93,4.71853914]
[1756868896771,10.61067097,211.99,211.93,4.71853914]
[1756868896989,10.61067097,211.98,211.92,0.03]
[1756868897271,9.93067097,211.94,211.92,0.03]
[1756868897763,0.68,211.93,211.92,0.03]
[1756868897962,9.93067097,211.94,211.92,0.03]
[1756868898271,0.68,211.93,211.92,0.03]
[1756868898470,10.61067097,211.94,211.92,0.03]
[1756868898676,9.93067097,211.94,211.93,0.03]
[1756868898863,26.0,211.98,211.93,0.03]
[1756868899066,9.93067097,211.94,211.93,0.03]
[1756868899465,10.61067097,211.94,211.93,0.03]
[1756868902254,10.89499411,211.94,211.93,0.03]
[1756868902462,15.61331061,211.94,211.93,0.03]
[1756868902765,29.35106619,211.94,211.93,0.03]
[1756868902961,66.79106619,211.94,211.93,0.03]
[1756868903277,5.82480121,211.94,211.93,0.03]
[1756868903482,15.75547218,211.94,211.93,0.03]
[1756868903798,66.79106619,211.94,211.93,0.03]
[1756868904077,66.79106619,211.94,211.92,0.03]
[1756868904078,0.42648471,211.93,211.92,0.03]
[1756868904258,10.35715568,211.93,211.92,0.03]
[1756868904453,15.75569482,211.93,211.92,0.03]
[1756868905474,53.21569482,211.93,211.92,0.03]
[1756868905674,15.75569482,211.93,211.92,0.03]
[1756868906064,53.19569482,211.93,211.92,0.03]
[1756868907272,66.79128883,211.93,211.92,0.03]
[1756868907477,39.59559401,211.9,211.87,0.03]
[1756868907667,0.42648471,211.83,211.76,0.03]
[1756868907862,9.93067097,211.77,211.76,0.03]
[1756868908187,10.61067097,211.77,211.76,0.03]
[1756868908389,48.07067097,211.77,211.76,0.03]
[1756868909168,53.21925984,211.77,211.76,0.03]
[1756868909976,15.75925984,211.77,211.76,0.03]
[1756868910178,24.63274969,211.77,211.76,0.03]
[1756868910377,62.11274969,211.77,211.76,0.03]
[1756868910577,48.51715568,211.77,211.76,0.03]
[1756868910775,37.5,211.77,211.76,0.03]
[1756868911086,47.43067097,211.77,211.76,0.03]
[1756868911388,9.93067097,211.77,211.76,0.03]
[1756868911572,47.45067097,211.77,211.76,0.03]
[1756868913392,47.43067097,211.77,211.76,0.03]
[1756868914287,47.41067097,211.77,211.76,0.03]
[1756868916578,47.39067097,211.77,211.76,0.03]
[1756868917585,9.93067097,211.77,211.76,0.03]
[1756868917984,47.37067097,211.77,211.76,0.03]
[1756868918500,26.0,211.8,211.76,0.03]
[1756868918677,9.93067097,211.77,211.76,0.69]
[1756868919192,9.93067097,211.77,211.76,0.03]
[1756868919577,47.37067097,211.77,211.76,0.03]
[1756868920895,37.44,211.77,211.76,0.03]
[1756868921497,9.93067097,211.78,211.76,0.03]
[1756868921689,37.44,211.77,211.76,0.03]
[1756868923086,48.05067097,211.77,211.76,0.03]
[1756868925181,47.37067097,211.77,211.76,0.03]
[1756868927199,9.93067097,211.77,211.76,0.03]
[1756868927407,47.31067097,211.77,211.76,0.03]
[1756868927898,37.34,211.77,211.76,0.69]
[1756868928108,47.27067097,211.79,211.76,0.69]
[1756868928288,9.93067097,211.79,211.76,0.69]
[1756868928487,37.34,211.78,211.76,0.69]
[1756868929406,37.34,211.78,211.76,5.41227444]
[1756868930500,9.93067097,211.77,211.76,0.03]
[1756868931508,38.02,211.78,211.76,0.03]
[1756868931711,9.93067097,211.77,211.76,0.03]
[1756868933888,10.61067097,211.77,211.76,0.03]
[1756868935004,9.93067097,211.77,211.76,0.03]
[1756868935318,9.93067097,211.8,211.76,0.69]
[1756868935497,37.28,211.79,211.77,4.72210416]
[1756868935691,4.38456137,211.82,211.78,0.66]
[1756868935887,5.06456137,211.84,211.79,0.66]
[1756868936104,0.68,211.86,211.8,0.66]
[1756868936293,37.52456137,211.85,211.8,0.66]
[1756868936498,38.20456137,211.85,211.8,0.66]
[1756868936888,4.38456137,211.84,211.8,0.66]
[1756868937314,4.38456137,211.84,211.81,4.7212124]
[1756868937519,37.3,211.83,211.81,4.7212124]
[1756868938916,37.3,211.83,211.8,0.66]
[1756868939107,41.68456137,211.83,211.8,4.72133578]
[1756868939416,4.38456137,211.81,211.78,4.72188119]
[1756868939611,37.26,211.8,211.76,4.75232716]
[1756868939922,37.26,211.8,211.77,0.66]
[1756868940420,37.26,211.8,211.76,4.75232716]
[1756868940606,40.74598425,211.8,211.76,4.75232716]
[1756868941214,40.06598425,211.8,211.76,4.75232716]
[1756868941418,37.26,211.8,211.76,5.41232716]
[1756868941997,40.06598425,211.8,211.76,5.41232716]
[1756868942200,40.74598425,211.8,211.76,5.41232716]
[1756868942413,37.26,211.8,211.77,0.66]
[1756868942713,37.26,211.8,211.76,4.75232716]
[1756868942714,0.68,211.79,211.76,4.75232716]
[1756868943107,40.06598425,211.8,211.76,4.75232716]
[1756868943302,40.74598425,211.8,211.76,4.75232716]
[1756868943518,37.26,211.8,211.78,4.72188119]
[1756868943999,3.48598425,211.82,211.78,4.72188119]
[1756868944200,37.26,211.81,211.79,0.66]
[1756868944400,0.68,211.86,211.8,0.66]
[1756868944725,37.26,211.85,211.8,3.46598425]
[1756868944923,37.28,211.85,211.81,3.46598425]
[1756868945319,2.86598425,211.87,211.84,2.80598425]
[1756868945320,0.06,211.87,211.84,2.80598425]
[1756868945618,0.06,211.87,211.86,7.52608242]
[1756868946116,0.06,211.87,211.86,8.18608242]
[1756868947914,0.06,211.87,211.86,4.72009817]
[1756868948813,37.58,211.91,211.86,4.72009817]
[1756868949025,0.68,211.9,211.86,4.72009817]
[1756868949607,36.9,211.91,211.87,2.80598425]
[1756868949811,36.9,211.91,211.86,8.18608242]
[1756868950606,36.9,211.91,211.87,3.46598425]
[1756868951020,0.74,211.92,211.87,3.46598425]
[1756868951229,0.06,211.92,211.88,3.46598425]
[1756868951532,0.06,211.92,211.89,0.67]
[1756868951731,0.06,211.9,211.89,5.38942989]
[1756868951931,0.06,211.9,211.87,84.41967786]
[1756868955601,0.68,211.89,211.87,84.41967786]
[1756868956007,0.06,211.9,211.87,84.41967786]
[1756868959331,0.74,211.9,211.87,79.7]
[1756868959929,2.86598425,211.9,211.87,79.7]
[1756868960308,0.68,211.89,211.87,79.7]
[1756868960509,3.48598425,211.89,211.87,79.7]
[1756868960709,0.68,211.88,211.85,84.42025461]
[1756868960928,2.80598425,211.89,211.85,84.42025461]
[1756868961137,0.68,211.89,211.85,84.42025461]
[1756868961329,2.86598425,211.9,211.85,85.09025461]
[1756868961524,3.48598425,211.89,211.85,84.42025461]
[1756868961906,0.68,211.88,211.85,84.42025461]
[1756868962112,0.68,211.87,211.85,84.42025461]
[1756868962314,0.68,211.87,211.85,4.72025461]
[1756868962510,3.48598425,211.86,211.82,79.7]
[1756868962813,3.48598425,211.86,211.79,11.8040988]
[1756868962814,2.80598425,211.86,211.8,8.19741956]
[1756868963008,3.48598425,211.86,211.8,87.89741956]
[1756868963536,3.48598425,211.86,211.8,85.09143531]
[1756868963712,37.16,211.88,211.77,0.67]
[1756868963713,2.80598425,211.82,211.77,0.67]
[1756868963910,2.80598425,211.82,211.78,0.67]
[1756868964113,2.80598425,211.82,211.76,131.50177594]
[1756868964114,3.48598425,211.81,211.77,4.72210416]
[1756868964415,5.00426992,211.87,211.77,4.72210416]
[1756868964416,2.80598425,211.82,211.78,0.67]
[1756868964610,2.80598425,211.82,211.77,4.72210416]
[1756868964815,37.16,211.83,211.79,0.67]
[1756868964816,39.96598425,211.83,211.79,0.67]
[1756868965027,2.80598425,211.83,211.79,0.67]
[1756868965232,3.48598425,211.82,211.77,5.39210416]
[1756868965645,3.48598425,211.82,211.77,4.72210416]
[1756868965839,3.48598425,211.82,211.77,5.39210416]
[1756868967344,2.80598425,211.82,211.78,0.67]
[1756868967936,2.80598425,211.82,211.76,4.75232716]
[1756868968144,0.06,211.92,211.81,2.80598425]
[1756868968324,2.86598425,211.92,211.86,2.80598425]
[1756868968734,2.86598425,211.92,211.82,37.28]
[1756868968735,0.06,211.92,211.87,3.47598425]
[1756868969043,0.06,211.91,211.87,3.47598425]
[1756868969219,0.06,211.91,211.87,0.67]
[1756868969420,0.06,211.91,211.88,4.71965263]
[1756868970622,0.06,211.91,211.88,5.38965263]
[1756868971227,0.74,211.9,211.88,4.71965263]
[1756868971444,0.06,211.9,211.88,4.71965263]
[1756868971746,0.06,211.9,211.88,5.38965263]
[1756868972136,0.06,211.9,211.88,4.71965263]
[1756868974022,0.06,211.9,211.87,4.71987539]
[1756868975745,0.06,211.9,211.87,5.38987539]
[1756868976048,0.06,211.9,211.88,0.67]
[1756868976249,0.06,211.9,211.89,4.71942989]
[1756868976446,0.06,211.9,211.89,8.19541414]
[1756868976627,0.06,211.9,211.89,87.89541414]
[1756868977331,0.06,211.91,211.89,101.49100815]
[1756868977530,0.06,211.91,211.9,3.47598425]
[1756868977735,0.06,211.91,211.9,0.67]
[1756868977937,0.06,211.91,211.9,3.47598425]
[1756868978435,0.06,211.91,211.9,8.19519142]
[1756868979534,0.06,211.91,211.9,45.41519142]
[1756868981450,0.06,211.91,211.9,125.11519142]
[1756868982352,0.06,211.91,211.9,87.89519142]
[1756868982539,0.06,211.91,211.9,125.07519142]
[1756868982730,0.06,211.92,211.9,125.07519142]
[1756868982927,4.52,212.0,211.91,3.46598425]
[1756868983256,0.7,211.99,211.93,2.80598425]
[1756868983547,0.7,211.99,211.93,39.96598425]
[1756868984152,0.7,212.02,211.96,2.80598425]
[1756868984333,0.7,212.02,211.96,82.50598425]
[1756868984535,0.7,212.02,211.98,2.80598425]
[1756868984852,0.7,212.04,212.0,4.71698113]
[1756868985163,0.7,212.04,212.0,7.52296538]
[1756868985346,0.7,212.04,212.01,3.50355746]
[1756868985944,0.7,212.04,212.02,4.71653617]
[1756868986345,0.7,212.03,212.01,8.22029226]
[1756868986539,0.7,212.03,212.01,4.7167348]
[1756868986735,0.7,212.03,212.01,8.22029226]
[1756868986947,2.80598426,212.05,212.0,8.22033907]
[1756868987147,0.7,212.02,212.0,4.71678161]
[1756868987556,0.7,212.02,212.0,8.21759827]
[1756868987753,0.7,212.02,212.0,4.71678161]
[1756868987954,0.7,212.02,212.0,8.21759827]
[1756868988153,0.7,212.02,212.0,4.71678161]
[1756868988332,0.76,212.02,212.0,8.21759827]
[1756868988534,0.76,212.02,211.97,37.2]
[1756868988535,0.7,212.01,211.98,3.50081666]
[1756868988851,2.86598425,212.02,211.98,3.50081666]
[1756868988852,0.7,212.0,211.98,3.50081666]
[1756868989053,0.7,211.99,211.97,3.50081666]
[1756868989258,0.7,211.99,211.97,3.50174273]
[1756868989654,0.7,211.98,211.97,3.50174273]